fUSD/lending_fUSD_20240104
["ID","MTS","AMOUNT","RATE_DAILY","PERIOD"]
[310194285,1704395687969,-1130.00000001,0.00039999,31]
[310194286,1704395687998,-158.00802893,0.0004,30]
[310194287,1704395688023,-11639.25008079,0.0004,30]
[310194288,1704395688047,-582.84724461,0.0004,30]
[310194289,1704395688073,-2000.0,0.0004,120]
[310194290,1704395688097,-300.0,0.0004,41]
[310194291,1704395688121,-206.60688654,0.0004,30]
[310194292,1704395688145,-741.0,0.0004,120]
[310194293,1704395688169,-477.12749073,0.0004,30]
[310194294,1704395688194,-113413.5829454,0.0004,30]
[310194295,1704395688218,-2000.0,0.0004,30]
[310194296,1704395688242,-1000.0,0.0004,30]
[310194297,1704395688267,-1596.0,0.0004,30]
[310194298,1704395688301,-899.7621437,0.0004,120]
[310194299,1704395688487,-317.5196374,0.0004,120]
[310194300,1704395688510,-500.0,0.0004,120]
[310194301,1704395688533,-10000.0,0.0004,30]
[310194302,1704395688559,-1595.0,0.0004,30]
[310194303,1704395688584,-1200.0,0.0004,30]
[310194304,1704395688609,-510.22,0.0004,90]
[310194305,1704395688631,-507.54837097,0.0004,30]
[310194306,1704395688653,-651.0,0.0004,120]
[310194307,1704395688677,-164.0,0.0004,30]
[310194308,1704395688703,-31876.82145,0.0004,30]
[310194309,1704395688725,-260.54964718,0.0004,120]
[310194310,1704395688748,-10077.3473754,0.0004,30]
[310194311,1704395688772,-292.91495176,0.0004,30]
[310194312,1704395688795,-300.0,0.0004,30]
[310194313,1704395688818,-300.0,0.0004,30]
[310194314,1704395688842,-1308.0,0.0004,30]
[310194315,1704395688865,-31006.03595221,0.0004,30]
[310194316,1704395688888,-2360.0,0.0004,120]
[310194317,1704395688918,-17067.11191434,0.0004,30]
[310194318,1704395688944,-43441.4961097,0.0004,30]
[310194319,1704395688969,-26080.55515192,0.0004,30]
[310194320,1704395688994,-30301.68139307,0.0004,30]
[310194321,1704395689019,-19489.08911609,0.0004,30]
[310194322,1704395689046,-16370.63251877,0.0004,30]
[310194323,1704395689071,-37078.23360947,0.0004,30]
[310194324,1704395689095,-33849.87608256,0.0004,30]
[310194325,1704395689119,-55441.76708754,0.0004,30]
[310194326,1704395689144,-19618.78355526,0.0004,30]
[310194327,1704395689170,-22206.81020465,0.0004,30]
[310194328,1704395689195,-16657.13862031,0.0004,30]
[310194329,1704395689221,-1200.0,0.0004,30]
[310194330,1704395689246,-596.14,0.00040109,92]
[310194331,1704395689273,-827.4,0.00040109,94]
[310194332,1704395689299,-596.14,0.00040328,93]
[310194333,1704395689323,-827.4,0.00040328,96]
[310194334,1704395689347,-150.0,0.000404,30]
[310194335,1704395689370,-5020.27525005,0.000405,45]
[310194336,1704395689392,-596.14,0.00040547,94]
[310194337,1704395689416,-827.4,0.00040547,98]
[310194338,1704395689439,-150.0,0.00040644,120]
[310194339,1704395689463,-1650.985799,0.000407,30]
[310194340,1704395689486,-13188.5853299,0.0004075,30]
[310194341,1704395689509,-596.14,0.00040767,95]
[310194342,1704395689532,-827.4,0.00040767,100]
[310194343,1704395689555,-839.8159159,0.000408,120]
[310194344,1704395689577,-32736.325874,0.000408,30]
[310194345,1704395689599,-1100.0,0.00040848,60]
[310194346,1704395689622,-1984.8758286,0.000409,60]
[310194347,1704395689645,-41500.28,0.000409,30]
[310194348,1704395689669,-150.0,0.000409,30]
[310194349,1704395689693,-100000.0,0.0004091,31]
[310194350,1704395689716,-100000.0,0.0004091,30]
[310194351,1704395689741,-100000.0,0.0004092,31]
[310194352,1704395689767,-596.14,0.00040986,96]
[310194353,1704395689789,-827.4,0.00040986,102]
[310194354,1704395689814,-500.0,0.00040987,31]
[310194355,1704395689837,-94418.38723443,0.00040998,120]
[310194356,1704395689861,-219250.86276787,0.00041,30]
[310194357,1704395689884,-1124.382903,0.00041,30]
[310194358,1704395689906,-33613.55613637,0.00041,30]
[310194359,1704395689930,-10000.0,0.00041,30]
[310194360,1704395689954,-10000.0,0.00041,30]
[310194361,1704395689977,-10000.0,0.00041,30]
[310194362,1704395690003,-1290.66,0.00041,30]
[310194363,1704395690029,-5000.0,0.00041,30]
[310194364,1704395690053,-150.0,0.00041,30]
[310194365,1704395690076,-728.83368993,0.00041,30]
[310194366,1704395690100,-551.10470589,0.00041,30]
[310194367,1704395690124,-300.0,0.00041,42]
[310194368,1704395690149,-116929.03376885,0.00041,30]
[310194369,1704395690172,-34204.34574321,0.00041,30]
[310194370,1704395690194,-620.0,0.00041,120]
[310194371,1704395690216,-201.27746478,0.00041,30]
[310194372,1704395690238,-2073.64442129,0.00041,120]
[310194373,1704395690261,-164.0,0.00041,30]
[310194374,1704395690283,-10270.76202802,0.00041,60]
[310194375,1704395690308,-208.3369,0.00041,30]
[310194376,1704395690332,-8000.0,0.00041,120]
[310194377,1704395690358,-4825.0,0.00041,83]
[310194378,1704395690381,-1061.69736936,0.00041095,30]
[310194379,1704395690404,-990.33,0.00041095,30]
[310194380,1704395690429,-990.33,0.00041095,30]
[310194381,1704395690452,-990.33,0.00041095,30]
[310194382,1704395690474,-990.33,0.00041095,30]
[310194383,1704395690495,-990.33,0.00041095,30]
[310194384,1704395690518,-990.33,0.00041095,30]
[310194385,1704395690540,-990.33,0.00041095,30]
[310194386,1704395690564,-990.33,0.00041095,30]
[310194387,1704395690586,-990.33,0.00041095,30]
[310194388,1704395690607,-990.33,0.00041095,30]
[310194389,1704395690631,-990.33,0.00041095,30]
[310194390,1704395690653,-990.33,0.00041095,30]
[310194391,1704395690675,-990.33,0.00041095,30]
[310194392,1704395690698,-990.33,0.00041095,30]
[310194393,1704395690721,-990.33,0.00041095,30]
[310194394,1704395690744,-990.33,0.00041095,30]
[310194395,1704395690767,-990.33,0.00041095,30]
[310194396,1704395690789,-990.33,0.00041095,30]
[310194397,1704395690812,-990.33,0.00041095,30]
[310194398,1704395690835,-990.33,0.00041095,30]
[310194399,1704395690857,-990.33,0.00041095,30]
[310194400,1704395690879,-990.33,0.00041095,30]
[310194401,1704395690907,-990.33,0.00041095,30]
[310194402,1704395690932,-990.4421835,0.00041095,30]
[310194403,1704395691122,-1036.05,0.00041095,30]
[310194404,1704395691146,-1036.05,0.00041095,30]
[310194405,1704395691169,-1036.05,0.00041095,30]
[310194406,1704395691192,-1036.05,0.00041095,30]
[310194407,1704395691215,-1036.05,0.00041095,30]
[310194408,1704395691238,-1036.05,0.00041095,30]
[310194409,1704395691265,-1036.05,0.00041095,30]
[310194410,1704395691288,-1036.05,0.00041095,30]
[310194411,1704395691310,-1036.05,0.00041095,30]
[310194412,1704395691333,-1036.05,0.00041095,30]
[310194413,1704395691355,-1036.05,0.00041095,30]
[310194414,1704395691378,-1036.05,0.00041095,30]
[310194415,1704395691400,-1036.05,0.00041095,30]
[310194416,1704395691423,-1036.05,0.00041095,30]
[310194417,1704395691444,-1036.05,0.00041095,30]
[310194418,1704395691466,-1036.05,0.00041095,30]
[310194419,1704395691488,-1036.05,0.00041095,30]
[310194420,1704395691511,-1036.05,0.00041095,30]
[310194421,1704395691534,-1036.05,0.00041095,30]
[310194422,1704395691557,-1036.05,0.00041095,30]
[310194423,1704395691580,-1036.05,0.00041095,30]
[310194424,1704395691603,-1036.05,0.00041095,30]
[310194425,1704395691626,-1036.05,0.00041095,30]
[310194426,1704395691649,-1036.28464334,0.00041095,30]
[310194427,1704395691681,-596.14,0.00041205,97]
[310194428,1704395691705,-827.4,0.00041205,104]
[310194429,1704395691730,-1000.0,0.0004137,120]
[310194430,1704395691755,-150.0,0.000414,31]
[310194431,1704395691778,-596.14,0.00041424,98]
[310194432,1704395691802,-827.4,0.00041424,106]
[310194433,1704395691827,-596.14,0.00041643,99]
[310194434,1704395691858,-827.4,0.00041643,108]
[310194435,1704395691883,-156.0,0.00041777,120]
[310194436,1704395691907,-165.0,0.000418,30]
[310194437,1704395691932,-596.14,0.00041863,100]
[310194438,1704395691956,-827.4,0.00041863,110]
[310194439,1704395691980,-150.0,0.000419,31]
[310194440,1704395692004,-150.0,0.00041918,120]
[310194441,1704395692028,-150.0,0.00041951,120]
[310194442,1704395692052,-150.0,0.00041954,120]
[310194443,1704395692075,-500.0,0.00041987,34]
[310194444,1704395692099,-300.0,0.00042,43]
[310194445,1704395692122,-546.87664236,0.00042,60]
[310194446,1704395692148,-250.0,0.00042,120]
[310194447,1704395692170,-2000.0,0.00042,30]
[310194448,1704395692194,-2000.0,0.00042,30]
[310194449,1704395692218,-2378.0,0.00042,30]
[310194450,1704395692242,-10001.16406344,0.00042,60]
[310194451,1704395692268,-10097.043772,0.00042,30]
[310194452,1704395692293,-10262.0,0.00042,30]
[310194453,1704395692317,-13061.24448076,0.00042,30]
[310194454,1704395692342,-7083.14869326,0.00042,60]
[310194455,1704395692368,-1660.0,0.00042,120]
[310194456,1704395692392,-20000.0,0.00042,30]
[310194457,1704395692415,-3846.13679982,0.00042,120]
[310194458,1704395692440,-150.0,0.00042,30]
[310194459,1704395692462,-164.0,0.00042,30]
[310194460,1704395692486,-596.14,0.00042082,101]
[310194461,1704395692511,-827.4,0.00042082,112]
[310194462,1704395692535,-198.0,0.00042288,90]
[310194463,1704395692559,-241.0,0.00042288,90]
[310194464,1704395692583,-560.24503475,0.000423,120]
[310194465,1704395692607,-596.14,0.00042301,102]
[310194466,1704395692629,-827.4,0.00042301,114]
[310194467,1704395692651,-1281.82584696,0.00042315,30]
[310194468,1704395692675,-277.44626,0.000424,32]
[310194469,1704395692700,-150.0,0.00042429,120]
[310194470,1704395692723,-2000.0,0.000425,120]
[310194471,1704395692747,-200.0,0.000425,120]
[310194472,1704395692772,-596.14,0.0004252,103]
[310194473,1704395692795,-827.4,0.0004252,116]
[310194474,1704395692819,-1626.6370374,0.00042546,120]
[310194475,1704395692842,-596.14,0.00042739,104]
[310194476,1704395692871,-827.4,0.00042739,118]
[310194477,1704395692895,-150.0,0.00042863,120]
[310194478,1704395692919,-176811.17326043,0.0004288,30]
[310194479,1704395692942,-596.14,0.00042958,105]
[310194480,1704395692966,-827.4,0.00042958,120]
[310194481,1704395692988,-500.0,0.00042987,35]
[310194482,1704395693011,-315.24875727,0.00042998,60]
[310194483,1704395693035,-300.0,0.00043,44]
[310194484,1704395693059,-500.0,0.00043,120]
[310194485,1704395693082,-159.42617806,0.00043,120]
[310194486,1704395693106,-344.9315592,0.00043,120]
[310194487,1704395693128,-569.77122191,0.00043,120]
[310194488,1704395693153,-150.0,0.00043,30]
[310194489,1704395693177,-1500.0,0.00043,30]
[310194490,1704395693201,-164.0,0.00043,30]
[310194491,1704395693226,-1114.36708336,0.00043,30]
[310194492,1704395693251,-43660.16137281,0.00043,120]
[310194493,1704395693275,-885.0,0.00043,30]
[310194494,1704395693298,-150.0,0.00043,37]
[310194495,1704395693322,-317.39150179,0.00043,30]
[310194496,1704395693349,-596.14,0.00043178,106]
[310194497,1704395693374,-827.4,0.00043178,120]
[310194498,1704395693395,-2224.12222919,0.000432,30]
[310194499,1704395693419,-42367.2218377,0.000433,30]
[310194500,1704395693442,-6027.02399586,0.00043381,30]
[310194501,1704395693464,-596.14,0.00043397,107]
[310194502,1704395693488,-827.4,0.00043397,120]
[310194503,1704395693511,-596.14,0.00043616,108]
[310194504,1704395693534,-827.4,0.00043616,120]
[310194505,1704395693560,-596.14,0.00043835,109]
[310194506,1704395693751,-827.4,0.00043835,120]
[310194507,1704395693777,-800.0,0.00043836,30]
[310194508,1704395693800,-202.349189,0.00043836,30]
[310194509,1704395693828,-500.0,0.00043987,37]
[310194510,1704395693850,-2000.0,0.00044,55]
[310194511,1704395693872,-276.83258584,0.00044,30]
[310194512,1704395693896,-74042.92440782,0.00044,30]
[310194513,1704395693920,-300.0,0.00044,45]
[310194514,1704395693944,-6676.14814782,0.00044,30]
[310194515,1704395693967,-150.0,0.00044,30]
[310194516,1704395693992,-350.0,0.00044,120]
[310194517,1704395694015,-164.0,0.00044,30]
[310194518,1704395694038,-993.32751399,0.00044,30]
[310194519,1704395695346,203.30994081,0.00037724,120]
[310194520,1704395701715,-9106.92918107,0.00044,30]
[310194521,1704395701984,-2064.61069904,0.00044,30]
[310194522,1704395702010,-150.0,0.00044,49]
[310194523,1704395702036,-596.14,0.00044054,110]
[310194524,1704395702062,-827.4,0.00044054,120]
[310194525,1704395702089,-5307.5,0.00044245,101]
[310194526,1704395702117,-596.14,0.00044273,111]
[310194527,1704395702142,-827.4,0.00044273,120]
[310194528,1704395702166,-202.0,0.00044402,90]
[310194529,1704395702193,-246.0,0.00044402,90]
[310194530,1704395702218,-596.14,0.00044493,112]
[310194531,1704395702243,-827.4,0.00044493,120]
[310194532,1704395702268,-1280.04399701,0.000445,60]
[310194533,1704395702294,-174.22954099,0.00044575,30]
[310194534,1704395702319,-192.28853783,0.000446,120]
[310194535,1704395702343,-583.74428953,0.0004467,120]
[310194536,1704395702377,-596.33705931,0.00044712,113]
[310194537,1704395702402,-827.49744841,0.00044712,120]
[310194538,1704395702424,-400.0,0.000448,85]
[310194539,1704395702450,-140043.10200813,0.000448,120]
[310194540,1704395702473,-397.08091468,0.000449,30]
[310194541,1704395702501,-1752.84623722,0.000449,60]
[310194542,1704395702525,-3282.9832774,0.0004498,30]
[310194543,1704395702550,-500.0,0.00044987,39]
[310194544,1704395702576,-1200.82107062,0.00045,120]
[310194545,1704395702599,-941.06209468,0.00045,30]
[310194546,1704395702622,-10729.2368393,0.00045,120]
[310194547,1704395702645,-300.0,0.00045,46]
[310194548,1704395702669,-1000.0,0.00045,30]
[310194549,1704395702692,-227.99538978,0.00045,30]
[310194550,1704395702714,-2000.0,0.00045,120]
[310194551,1704395702738,-3794.08388401,0.00045,120]
[310194552,1704395702763,-350.0,0.00045,120]
[310194553,1704395702788,-200.0,0.00045,60]
[310194554,1704395702813,-3807878.98753099,0.00045,30]
[310194594,1704396631973,-467.34439771,0.00024599,2]
[310194596,1704396631983,-164.67,0.000246,2]
[310194597,1704396631993,-250.0,0.00027,3]
[310194598,1704396632002,-466.136,0.00028578,2]
[310194599,1704396632012,-589.61,0.00028722,2]
[310194600,1704396632022,-300.0,0.00029,3]
[310194601,1704396632032,-1567.68383956,0.000295,2]
[310194602,1704396635357,-287.75294492,0.000295,2]
[310194603,1704396635415,-8.56321552,0.000295,2]
[310194604,1704396635425,-300.0,0.00029599,2]
[310194605,1704396635435,-150.0,0.00029599,2]
[310194606,1704396635445,-19073.0,0.000296,2]
[310194607,1704396635456,-250.0,0.00030598,2]
[310194608,1704396635466,-162.18,0.00030651,2]
[310194609,1704396635476,-175.19,0.00030661,2]
[310194610,1704396635486,-753.42,0.00030661,2]
[310194611,1704396635495,-800.0,0.00030683,2]
[310194612,1704396635505,-166.99459717,0.00030751,2]
[310194613,1704396635515,-150.0,0.00030769,2]
[310194614,1704396635525,-269.58,0.00030796,2]
[310194615,1704396635535,-491.17492252,0.00030841,2]
[310194616,1704396635545,-168.12,0.00030851,2]
[310194617,1704396635556,-289.65,0.00030851,2]
[310194618,1704396635566,-23890.0,0.00030851,2]
[310194619,1704396635577,-343.57,0.00030851,2]
[310194620,1704396635588,-2000.0,0.00030851,2]
[310194621,1704396635600,-546.42,0.00030879,2]
[310194622,1704396635611,-714.73,0.00030893,2]
[310194623,1704396635621,-710.65,0.00030925,2]
[310194624,1704396635630,-162.77,0.00030953,2]
[310194625,1704396635640,-154.97,0.00030955,2]
[310194626,1704396635650,-589.61,0.00030986,2]
[310194627,1704396635660,-350.0,0.00031,3]
[310194628,1704396635670,-529.530863,0.00031,3]
[310194630,1704396635680,-155.39,0.00031066,2]
[310194632,1704396635690,-155.39,0.00031261,2]
[310194633,1704396635700,-247.73125916,0.00031396,14]
[310194634,1704396635710,-717.24,0.00031397,2]
[310194635,1704396635720,-155.39,0.00031455,2]
[310194636,1704396635730,-2776.87,0.00031648,2]
[310194637,1704396635739,-155.39,0.00031649,2]
[310194638,1704396635750,-154.97,0.00031761,2]
[310194639,1704396635763,-200.0,0.00031822,2]
[310194640,1704396635773,-343.57,0.00031829,2]
[310194641,1704396635783,-155.39,0.00031843,2]
[310194642,1704396635793,-420.0,0.00031914,3]
[310194643,1704396635803,-1262.05847547,0.00031969,2]
[310194644,1704396635813,-1262.05847547,0.0003197,2]
[310194645,1704396635825,-1262.05847547,0.00031972,2]
[310194646,1704396635835,-76900.50292992,0.00031974,2]
[310194647,1704396635845,-375481.56901377,0.00031979,2]
[310194648,1704396635861,-1906.40337272,0.00031979,2]
[310194649,1704396635874,-955.03548049,0.00031979,2]
[310194650,1704396635887,-236412.16453403,0.00031979,2]
[310194651,1704396635986,-397.05035,0.00031979,2]
[310194660,1704396637952,-191975.62047461,0.00031979,2]
[310194661,1704396638015,-57744.2562,0.00031979,2]
[310194662,1704396638072,-1684.46894603,0.00031979,2]
[310194663,1704396638082,-70838.28999296,0.00031981,2]
[310194664,1704396638257,-3560.57629958,0.00031981,2]
[310194665,1704396638378,-465.64,0.00031981,2]
[310194666,1704396638390,-1681.5,0.00031981,2]
[310194686,1704396641124,-478.56721578,0.00031981,2]
[310194687,1704396641137,-259.74725225,0.00031981,2]
[310194688,1704396641182,-783.10615008,0.00031981,2]
[310194689,1704396641241,-7448.20773688,0.00031981,2]
[310194690,1704396641298,-659.25834365,0.00031981,2]
[310194702,1704396642990,-6906.98744492,0.00031981,2]
[310194703,1704396643048,-33278.16130978,0.00031981,2]
[310194704,1704396643104,-360.34016643,0.00031981,2]
[310194705,1704396643215,-18542.84198323,0.00031981,2]
[310194706,1704396643275,-2641.61048832,0.00031981,2]
[310194731,1704396645964,-175.46,0.00031082,2]
[310194732,1704396645974,-175.46,0.00031487,2]
[310194733,1704396645985,-175.46,0.00031892,2]
[310194734,1704396645996,-2883.4012,0.00031981,2]
[310194735,1704396646067,-237880.22839511,0.00031981,2]
[310194736,1704396646080,-1967.11957361,0.00031981,2]
[310194737,1704396646092,-4268.05674467,0.00031981,2]
[310194738,1704396646132,-89703.07961903,0.00031981,2]
[310194759,1704396907281,500.0,0.000192,2]
[310194760,1704396934942,4262.33827676,0.000192,2]
[310194761,1704396940074,531.02174147,0.000192,2]
[310194762,1704396944732,1595.36712932,0.0001536,2]
[310194763,1704396953452,2841.55885117,0.000192,2]
[310194764,1704396960040,531.02174147,0.000192,2]
[310194765,1704396960743,1595.36712932,0.0001536,2]
[310194766,1704396973450,2367.96570931,0.000192,2]
[310194767,1704396976748,956.59539801,0.0001536,2]
[310194768,1704396982048,530.43291917,0.000192,2]
[310194769,1704396993948,2367.96570931,0.000192,2]
[310194770,1704397010449,1233.71013455,0.000192,2]
[310194771,1704397028451,1233.71013455,0.000192,2]
[310194772,1704397046969,1233.71013455,0.000192,2]
[310194773,1704397065453,1233.71013455,0.000192,2]
[310194774,1704397081451,1233.71013455,0.000192,2]
[310194775,1704397103952,1233.71013455,0.000192,2]
[310194776,1704397126513,1233.71013455,0.000192,2]
[310194777,1704397142491,1233.71013455,0.000192,2]
[310194778,1704397158962,1233.71013455,0.000192,2]
[310194779,1704397181479,736.43733562,0.000192,2]
[310194794,1704397802007,-269.18284995,0.00025336,2]
[310194795,1704397802028,-326.00133927,0.00025337,2]
[310194796,1704397802049,-2133.16689848,0.00025338,2]
[310194797,1704397802071,-526.72345828,0.00025339,2]
[310194798,1704397802093,-764.52741755,0.0002534,2]
[310194799,1704397802116,-739.04,0.00025341,2]
[310194800,1704397807481,16466.71204539,0.00025335,2]
[310194820,1704397832123,-160.73437873,0.00026084,2]
[310194822,1704397832135,-155.88262127,0.00026767,2]
[310194827,1704397832177,-4.85175735,0.00026767,2]
[310194829,1704397832186,-183.92,0.00026905,2]
[310194831,1704397832195,-3347.46021007,0.00026905,2]
[310194842,1704397832314,-1017.93,0.00026905,2]
[310194847,1704397832347,-1025.78248683,0.00026905,2]
[310194849,1704397832359,-16008.3373031,0.00026905,2]
[310194851,1704397832369,-250.0,0.00027,3]
[310194853,1704397832379,-237.14,0.00027268,2]
[310194855,1704397832389,-360.0,0.00027285,2]
[310194857,1704397832398,-482.19,0.00027397,15]
[310194859,1704397832410,-160.73437862,0.0002745,2]
[310194861,1704397832420,-151.02,0.0002753,2]
[310194863,1704397832429,-739.04,0.00027605,2]
[310194865,1704397832438,-151.02,0.0002762,2]
[310194866,1704397832448,-300.0,0.00027663,2]
[310194867,1704397832457,-150.0,0.00027663,2]
[310194868,1704397832466,-4355.2,0.00027664,2]
[310194869,1704397832475,-499.99,0.00027664,2]
[310194871,1704397832485,-296.88,0.00027664,2]
[310194873,1704397832494,-151.02,0.0002771,2]
[310194875,1704397832504,-250.0,0.00027736,2]
[310194877,1704397832513,-2214.53631722,0.00027768,2]
[310194879,1704397832522,-2000.0,0.0002777,2]
[310194881,1704397832531,-300.65470659,0.00027776,2]
[310194883,1704397832541,-2128.93083034,0.00027776,2]
[310194886,1704397832550,-269.18284995,0.00027776,2]
[310194889,1704397832559,-180.67619342,0.00027776,2]
[310194891,1704397832568,-262.14741804,0.00027776,2]
[310194893,1704397832577,-514.40879808,0.00027777,2]
[310194895,1704397832586,-155.0,0.00027777,2]
[310194896,1704397832596,-5492.88042645,0.00027777,2]
[310194897,1704397832605,-29968.06,0.00027778,2]
[310194898,1704397832614,-940.29,0.00027778,2]
[310194899,1704397832623,-151.02,0.00027799,2]
[310194900,1704397832633,-4355.2,0.00027824,2]
[310194901,1704397832642,-2467.05007009,0.00027838,2]
[310194902,1704397832653,-250.0,0.00027856,2]
[310194903,1704397832662,-7986.37439671,0.00027886,2]
[310194904,1704397832672,-175.19,0.00027887,2]
[310194905,1704397832681,-151.02,0.00027889,2]
[310194906,1704397832690,-162.18,0.00027945,2]
[310194907,1704397832699,-151.02,0.00027979,2]
[310194908,1704397832709,-4355.2,0.00027983,2]
[310194909,1704397832717,-1146.95,0.00027998,2]
[310194910,1704397832726,-250.0,0.00027998,2]
[310194911,1704397832736,-200.0,0.00028,2]
[310194912,1704397832745,-1557.43,0.00028057,2]
[310194913,1704397832754,-151.02,0.00028068,2]
[310194914,1704397832763,-160.73437862,0.00028133,2]
[310194915,1704397832772,-640.0,0.00028137,2]
[310194916,1704397832782,-4355.2,0.00028143,2]
[310194917,1704397832791,-231.98773338,0.00028148,2]
[310194918,1704397832801,-218.49626607,0.00028148,2]
[310194919,1704397832810,-151.02,0.00028158,2]
[310194920,1704397832819,-206.78,0.00028182,10]
[310194921,1704397832828,-433015.46067924,0.00028192,2]
[310194922,1704397832838,-151.02,0.00028248,2]
[310194923,1704397832847,-4355.2,0.00028303,2]
[310194924,1704397832856,-151.02,0.00028337,2]
[310194925,1704397832866,-151.02,0.00028427,2]
[310194926,1704397832875,-4355.2,0.00028463,2]
[310194927,1704397832885,-151.02,0.00028517,2]
[310194928,1704397832894,-914.47496769,0.00028527,2]
[310194929,1704397832906,-151.02,0.00028606,2]
[310194930,1704397832916,-154.86,0.00028616,2]
[310194931,1704397832925,-4355.2,0.00028623,2]
[310194932,1704397832935,-151.02,0.00028696,2]
[310194933,1704397832945,-3413.73,0.00028712,2]
[310194934,1704397832955,-4355.2,0.00028783,2]
[310194935,1704397832965,-151.02,0.00028786,2]
[310194936,1704397832974,-160.73437862,0.00028816,2]
[310194937,1704397832984,-151.02,0.00028875,2]
[310194938,1704397833202,-914.47496768,0.000289,2]
[310194939,1704397833212,-4355.2,0.00028942,2]
[310194940,1704397833222,-151.02,0.00028965,2]
[310194941,1704397833231,-1146.95,0.00028976,2]
[310194942,1704397833240,-1170.45,0.0002899,2]
[310194943,1704397833250,-390.68668871,0.0002899,2]
[310194944,1704397833259,-188.30052044,0.00028998,2]
[310194945,1704397833268,-311.44461568,0.00028998,2]
[310194946,1704397833277,-168.75929348,0.00028998,2]
[310194947,1704397833286,-530.51756616,0.00028998,2]
[310194948,1704397833295,-1000.0,0.00028999,2]
[310194949,1704397833305,-128970.79256008,0.00029,2]
[310194950,1704397833315,-300.0,0.00029,3]
[310194951,1704397833324,-4355.2,0.00029102,2]
[310194952,1704397833334,-160.73437862,0.00029499,2]
[310194953,1704397833344,-202.58,0.00029565,2]
[310194954,1704397833354,-1853.0,0.000297,2]
[310194955,1704397833363,-18710.0,0.000297,2]
[310194956,1704397833372,-739.04,0.00029868,2]
[310194957,1704397833383,-420.0,0.00029886,2]
[310194958,1704397833393,-1146.95,0.00029955,2]
[310194959,1704397833403,-154.86,0.00029986,2]
[310194960,1704397833412,-689.50611015,0.0003,2]
[310194961,1704397833421,-1921.93729992,0.00030082,4]
[310194962,1704397833431,-10000.0,0.00030137,2]
[310194963,1704397833440,-7288.21,0.00030137,2]
[310194964,1704397833449,-160.73437862,0.00030183,2]
[310194965,1704397833458,-231.98773338,0.00030248,2]
[310194966,1704397833468,-210.0,0.00030429,2]
[310194967,1704397833478,-177.02,0.00030466,2]
[310194968,1704397833487,-177.02,0.00030626,2]
[310194969,1704397833497,-360.0,0.00030695,2]
[310194970,1704397833506,-170.95,0.00030774,2]
[310194971,1704397833515,-177.02,0.00030787,2]
[310194972,1704397833524,-160.73437862,0.00030866,2]
[310194973,1704397833534,-150.0,0.00030912,2]
[310194974,1704397833544,-1146.95,0.00030933,2]
[310194975,1704397833554,-1921.93729992,0.00030937,5]
[310194976,1704397833563,-177.02,0.00030947,2]
[310194977,1704397833573,-9604.33331486,0.00030984,2]
[310194978,1704397833583,-350.0,0.00031,3]
[310194979,1704397833592,-153.84,0.00031027,2]
[310194980,1704397833602,-177.02,0.00031107,2]
[310194981,1704397833611,-188.44,0.00031159,2]
[310194982,1704397833621,-156.64,0.00031159,2]
[310194983,1704397833630,-177.02,0.00031268,2]
[310194984,1704397833640,-177.02,0.00031428,2]
[310194985,1704397833650,-188.44,0.00031468,2]